bitfinex-derivatives/quotes_BTCF0:USTF0_20241013
["timestamp","ask_amount","ask_price","bid_price","bid_amount"]
[1728847612507,0.081891,62594.0,62593.0,0.16043131]
[1728847613369,0.081891,62594.0,62593.0,0.080892]
[1728847614905,0.19379775,62594.0,62593.0,0.080892]
[1728847615111,0.22466319,62594.0,62593.0,0.080892]
[1728847617523,0.11275644,62594.0,62593.0,0.080892]
[1728847620883,0.20978443,62594.0,62593.0,0.080892]
[1728847621012,0.27977665,62594.0,62593.0,0.080892]
[1728847621915,0.081891,62594.0,62593.0,0.080892]
[1728847622117,0.04191743,62594.0,62593.0,0.080892]
[1728847623023,0.04191743,62594.0,62593.0,0.19430266]
[1728847623522,0.002,62594.0,62593.0,0.19430266]
[1728847623921,0.002,62594.0,62593.0,0.22590266]
[1728847624026,0.002,62594.0,62593.0,0.25840266]
[1728847624811,0.3608,62602.0,62601.0,0.079882]
[1728847625017,0.3608,62602.0,62601.0,0.189882]
[1728847625320,0.3608,62602.0,62601.0,0.26937264]
[1728847625518,0.3608,62602.0,62601.0,0.15937264]
[1728847625719,0.3608,62602.0,62601.0,0.079882]
[1728847626021,0.3608,62602.0,62600.0,0.07949064]
[1728847626022,0.11,62604.0,62603.0,0.07988]
[1728847626316,0.079877,62606.0,62605.0,0.079877]
[1728847627920,0.079877,62606.0,62605.0,0.080877]
[1728847628107,0.079877,62606.0,62605.0,0.081877]
[1728847628313,0.079877,62606.0,62605.0,0.14544168]
[1728847629922,0.079877,62606.0,62605.0,0.081877]
[1728847635818,0.079877,62606.0,62605.0,0.002]
[1728847636527,0.02889062,62608.0,62605.0,0.112]
[1728847636726,0.079874,62608.0,62607.0,0.079875]
[1728847637114,0.19888349,62608.0,62607.0,0.079875]
[1728847638428,0.19888349,62608.0,62607.0,0.080875]
[1728847639333,0.19888349,62608.0,62607.0,0.081875]
[1728847640123,0.35836716,62608.0,62607.0,0.081875]
[1728847640626,0.19888349,62608.0,62607.0,0.081875]
[1728847641326,0.35834243,62608.0,62607.0,0.081875]
[1728847641935,0.19888349,62608.0,62607.0,0.081875]
[1728847642631,0.20714369,62608.0,62607.0,0.081875]
[1728847642993,0.30888148,62608.0,62607.0,0.11123415]
[1728847643132,0.30888148,62608.0,62607.0,0.081875]
[1728847645138,0.189874,62608.0,62607.0,0.081875]
[1728847649744,0.36319658,62609.0,62607.0,0.112]
[1728847649934,0.079873,62608.0,62607.0,0.002]
[1728847650239,0.189873,62608.0,62607.0,0.002]
[1728847652032,0.36618838,62608.0,62607.0,0.002]
[1728847652428,0.30889,62608.0,62607.0,0.002]
[1728847655740,0.54176294,62608.0,62607.0,0.002]
[1728847656039,0.36618838,62608.0,62607.0,0.002]
[1728847660150,0.189873,62608.0,62607.0,0.002]
[1728847667142,0.36618841,62608.0,62607.0,0.002]
[1728847671345,0.36618839,62608.0,62607.0,0.002]
[1728847675253,0.189873,62608.0,62607.0,0.002]
[1728847679161,0.189873,62608.0,62607.0,0.08149064]
[1728847679862,0.189873,62608.0,62607.0,0.002]
[1728847680364,0.189873,62608.0,62607.0,0.08149064]
[1728847680661,0.189873,62608.0,62607.0,0.194647]
[1728847682062,0.36619003,62608.0,62607.0,0.002]
[1728847686165,0.72699003,62608.0,62607.0,0.002]
[1728847686866,0.60797191,62608.0,62607.0,0.002]
[1728847687065,0.550673,62608.0,62607.0,0.002]
[1728847688063,0.72700072,62608.0,62607.0,0.002]
[1728847689056,0.63883686,62608.0,62607.0,0.002]
[1728847689368,0.72699601,62608.0,62607.0,0.002]
[1728847690162,0.189873,62608.0,62607.0,0.002]
[1728847690563,0.550673,62608.0,62607.0,0.002]
[1728847696973,0.189873,62608.0,62607.0,0.002]
[1728847697471,0.550673,62608.0,62607.0,0.002]
[1728847699871,0.189873,62608.0,62607.0,0.002]
[1728847700172,0.550673,62608.0,62607.0,0.002]
[1728847704482,0.189873,62608.0,62607.0,0.002]
[1728847704676,0.550673,62608.0,62607.0,0.002]
[1728847705283,0.66969427,62608.0,62607.0,0.002]
[1728847705588,0.30889427,62608.0,62607.0,0.002]
[1728847705874,0.66969427,62608.0,62607.0,0.002]
[1728847706277,0.30889427,62608.0,62607.0,0.002]
[1728847706481,0.66969427,62608.0,62607.0,0.002]
[1728847707374,0.30889427,62608.0,62607.0,0.002]
[1728847707886,0.66969427,62608.0,62607.0,0.002]
[1728847708183,0.30889427,62608.0,62607.0,0.002]
[1728847708584,0.66969427,62608.0,62607.0,0.002]
[1728847708981,0.30889427,62608.0,62607.0,0.002]
[1728847709282,0.66969427,62608.0,62607.0,0.002]
[1728847711286,0.30889427,62608.0,62607.0,0.002]
[1728847711886,0.66969427,62608.0,62607.0,0.002]
[1728847712279,0.189873,62608.0,62607.0,0.002]
[1728847712575,0.550673,62608.0,62607.0,0.002]
[1728847714685,0.189873,62608.0,62607.0,0.002]
[1728847714886,0.550673,62608.0,62607.0,0.002]
[1728847715583,0.189873,62608.0,62607.0,0.002]
[1728847715782,0.550673,62608.0,62607.0,0.002]
[1728847716387,0.189873,62608.0,62607.0,0.002]
[1728847716592,0.550673,62608.0,62607.0,0.002]
[1728847720889,0.189873,62608.0,62607.0,0.002]
[1728847721191,0.550673,62608.0,62607.0,0.002]
[1728847722986,0.550673,62608.0,62607.0,0.08147267]
[1728847723689,0.550673,62608.0,62607.0,0.19458226]
[1728847723888,0.550673,62608.0,62607.0,0.19457876]
[1728847724091,0.550673,62608.0,62607.0,0.08147267]
[1728847724393,0.550673,62608.0,62607.0,0.002]
[1728847725612,0.189873,62608.0,62607.0,0.002]
[1728847725791,0.550673,62608.0,62607.0,0.002]
[1728847726386,0.189873,62608.0,62607.0,0.002]
[1728847726586,0.550673,62608.0,62607.0,0.002]
[1728847727294,0.66969319,62608.0,62607.0,0.002]
[1728847727989,0.81356371,62608.0,62607.0,0.002]
[1728847728189,0.66969319,62608.0,62607.0,0.002]
[1728847728495,0.81356371,62608.0,62607.0,0.002]
[1728847728681,0.45276371,62608.0,62607.0,0.002]
[1728847728995,0.81356371,62608.0,62607.0,0.002]
[1728847729599,0.45276371,62608.0,62607.0,0.002]
[1728847729796,0.81356371,62608.0,62607.0,0.002]
[1728847730089,0.66969319,62608.0,62607.0,0.002]
[1728847730294,0.62065571,62608.0,62607.0,0.002]
[1728847730495,0.66969197,62608.0,62607.0,0.002]
[1728847731390,0.30889197,62608.0,62607.0,0.002]
[1728847732789,0.11901897,62608.0,62607.0,0.081875]
[1728847732989,0.05953261,62608.0,62607.0,1.631835]
[1728847733183,0.06538418,62609.0,62607.0,1.1828]
[1728847733395,0.0037,62616.0,62615.0,0.079865]
[1728847733597,0.14386155,62621.0,62620.0,0.079858]
[1728847733788,0.079855,62623.0,62618.0,0.11]
[1728847733992,0.079855,62623.0,62622.0,0.079856]
[1728847735103,0.079855,62623.0,62622.0,0.080856]
[1728847735794,0.189855,62623.0,62622.0,0.080856]
[1728847736186,0.189855,62623.0,62622.0,0.002]
[1728847736589,0.189855,62623.0,62622.0,0.04957723]
[1728847737486,0.189855,62623.0,62622.0,0.002]
[1728847740387,0.189855,62623.0,62619.0,0.079859]
[1728847740388,0.299855,62623.0,62619.0,0.04757723]
[1728847740702,0.189858,62620.0,62615.0,0.04757723]
[1728847740899,0.4708,62616.0,62614.0,0.04757723]
[1728847741196,0.4708,62616.0,62613.0,0.04757723]
[1728847741197,0.079866,62614.0,62613.0,0.04757723]
[1728847741398,0.079867,62613.0,62612.0,0.04757723]
[1728847742495,0.079872,62609.0,62608.0,0.079873]
[1728847742701,0.16802255,62609.0,62608.0,0.079873]
[1728847743206,0.19887925,62609.0,62608.0,0.079873]
[1728847743617,0.25617299,62609.0,62608.0,0.079873]
[1728847744707,0.25817299,62609.0,62608.0,0.080873]
[1728847744904,0.26017299,62609.0,62608.0,0.081873]
[1728847745113,0.26017125,62609.0,62608.0,0.081873]
[1728847749820,0.26017131,62609.0,62608.0,0.081873]
[1728847750522,0.04390649,62609.0,62608.0,0.081873]
[1728847762516,0.07476328,62609.0,62608.0,0.081873]
[1728847763425,0.03485679,62609.0,62608.0,0.081873]
[1728847764427,0.03485602,62609.0,62608.0,0.081873]
[1728847764724,0.004,62609.0,62608.0,0.19619038]
[1728847768626,0.004,62609.0,62608.0,0.29138355]
[1728847769222,0.004,62609.0,62608.0,0.29149819]
[1728847769523,0.004,62609.0,62608.0,0.19630502]
[1728847770125,0.004,62609.0,62608.0,0.33276565]
[1728847772735,0.16344345,62609.0,62608.0,0.081873]
[1728847773625,0.28244669,62609.0,62608.0,0.081873]
[1728847777524,0.12300324,62609.0,62608.0,0.081873]
[1728847779629,0.12300324,62609.0,62608.0,0.19626985]
[1728847779630,0.004,62609.0,62608.0,0.19626985]
[1728847780035,0.004,62609.0,62608.0,0.33261637]
[1728847780233,0.004,62609.0,62608.0,0.19626985]
[1728847781240,0.004,62609.0,62608.0,0.33263938]
[1728847781639,0.004,62609.0,62608.0,0.19626985]
[1728847781835,0.004,62609.0,62608.0,0.33263804]
[1728847783530,0.004,62609.0,62608.0,0.081873]
[1728847783730,0.004,62609.0,62608.0,0.19621892]
[1728847783932,0.004,62609.0,62608.0,0.33251592]
[1728847785237,0.004,62609.0,62608.0,0.33252079]
[1728847785941,0.004,62609.0,62608.0,0.19621892]
[1728847787344,0.004,62609.0,62608.0,0.081873]
[1728847797065,0.07397279,62609.0,62608.0,0.081873]
[1728847800054,0.004,62609.0,62608.0,0.081873]
[1728847802046,0.08388561,62609.0,62608.0,0.081873]
[1728847802357,0.0348555,62609.0,62608.0,0.19620509]
[1728847804151,0.0308555,62609.0,62608.0,0.19620509]
[1728847806052,0.11,62613.0,62608.0,0.11633209]
[1728847806252,0.11,62613.0,62612.0,0.079868]
[1728847807760,0.11,62613.0,62612.0,0.080868]
[1728847808065,0.11,62613.0,62612.0,0.081868]
[1728847808857,0.189867,62613.0,62612.0,0.081868]
[1728847817253,0.22072195,62613.0,62612.0,0.081868]
[1728847818761,0.33260764,62613.0,62612.0,0.081868]
[1728847819067,0.25983795,62613.0,62612.0,0.081868]
[1728847819858,0.38770731,62613.0,62612.0,0.081868]
[1728847823064,0.25983795,62613.0,62612.0,0.081868]
[1728847825263,0.189867,62613.0,62612.0,0.19610196]
[1728847827668,0.189867,62613.0,62612.0,0.19615613]
[1728847832171,0.189867,62613.0,62612.0,0.081868]
[1728847832172,0.25983847,62613.0,62612.0,0.081868]
[1728847833879,0.38769538,62613.0,62612.0,0.081868]
[1728847834079,0.25983847,62613.0,62612.0,0.081868]
[1728847835682,0.38769462,62613.0,62612.0,0.081868]
[1728847836068,0.25983847,62613.0,62612.0,0.081868]
[1728847837281,0.22072236,62613.0,62612.0,0.081868]
[1728847840181,0.189867,62613.0,62612.0,0.19616325]
[1728847841970,0.189867,62613.0,62612.0,0.19614884]
[1728847844872,0.189867,62613.0,62612.0,0.11628084]
[1728847845180,0.189867,62613.0,62605.0,0.09527224]
[1728847845181,0.079875,62607.0,62605.0,0.09527224]
[1728847845381,0.079875,62607.0,62603.0,0.08358]
[1728847845382,0.079879,62604.0,62603.0,0.17515224]
[1728847845592,0.079879,62604.0,62603.0,0.07988]
[1728847846285,0.079879,62604.0,62603.0,0.17515224]
[1728847846476,0.079879,62604.0,62603.0,0.07988]
[1728847846677,0.079879,62604.0,62603.0,0.08088]
[1728847847280,0.11073792,62604.0,62603.0,0.08088]
[1728847848385,0.11073792,62604.0,62603.0,0.08188]
[1728847851685,0.1107379,62604.0,62603.0,0.08188]
[1728847851888,0.079879,62604.0,62603.0,0.08188]
[1728847854789,0.03991118,62604.0,62603.0,0.17710027]
[1728847857195,0.079875,62607.0,62603.0,0.09722027]
[1728847857385,0.079875,62607.0,62606.0,0.079876]
[1728847857585,0.189875,62607.0,62606.0,0.079876]
[1728847859393,0.189875,62607.0,62606.0,0.080876]
[1728847859892,0.189875,62607.0,62606.0,0.081876]
[1728847860092,0.189875,62607.0,62606.0,0.19499621]
[1728847862286,0.189875,62607.0,62606.0,0.1949426]
[1728847862885,0.25985412,62607.0,62606.0,0.081876]
[1728847868901,0.189875,62607.0,62606.0,0.081876]
[1728847870298,0.189875,62607.0,62606.0,0.19501063]
[1728847872903,0.189875,62607.0,62606.0,0.4034577]
[1728847873105,0.189875,62607.0,62606.0,0.40347741]
[1728847874302,0.189875,62607.0,62606.0,0.308215]
[1728847877307,0.189875,62607.0,62606.0,0.19508037]
[1728847877805,0.189875,62607.0,62606.0,0.1950974]
[1728847879597,0.189875,62607.0,62606.0,0.1152214]
[1728847879999,0.299875,62607.0,62606.0,0.1152214]
[1728847880200,0.299875,62607.0,62606.0,0.002]
[1728847880694,0.299875,62607.0,62606.0,0.06552901]
[1728847881901,0.299875,62607.0,62606.0,0.04964174]
[1728847882210,0.299875,62607.0,62606.0,0.002]
[1728847883109,0.22,62607.0,62603.0,0.04764174]
[1728847883308,0.07988,62603.0,62602.0,0.04764174]
[1728847883496,0.5808,62604.0,62600.0,0.04764174]
[1728847883700,0.189882,62601.0,62600.0,0.04764174]
[1728847883909,0.189882,62601.0,62598.0,0.06352901]
[1728847884110,0.079885,62599.0,62598.0,0.06352901]
[1728847884503,0.079886,62598.0,62597.0,0.06352901]
[1728847884705,0.189886,62598.0,62597.0,0.06352901]
[1728847884908,0.079891,62594.0,62593.0,0.079893]
[1728847885204,0.189891,62594.0,62593.0,0.079893]
[1728847886611,0.079898,62590.0,62589.0,0.079897]
[1728847886809,0.189898,62590.0,62589.0,0.079897]
[1728847888012,0.189898,62590.0,62589.0,0.088897]
[1728847890212,0.189898,62590.0,62589.0,0.009]
[1728847890916,0.079898,62590.0,62589.0,0.009]
[1728847892910,0.079898,62590.0,62589.0,0.0884194]
[1728847893109,0.079898,62590.0,62589.0,0.20207749]
[1728847893315,0.079898,62590.0,62589.0,0.0884194]
[1728847893619,0.079898,62590.0,62589.0,0.009]
[1728847893819,0.079898,62590.0,62589.0,0.0884194]
[1728847894510,0.079898,62590.0,62589.0,0.009]
[1728847899926,0.03991951,62590.0,62589.0,0.009]
[1728847902823,0.03991951,62590.0,62589.0,0.088898]
[1728847904229,0.03991951,62590.0,62589.0,0.009]
[1728847904919,0.03991951,62590.0,62589.0,0.0884194]
[1728847905138,0.03991951,62590.0,62589.0,0.20181084]
[1728847905324,0.03991951,62590.0,62589.0,0.12239144]
[1728847906318,0.03991951,62590.0,62589.0,0.12233987]
[1728847907933,0.03991951,62590.0,62589.0,0.009]
[1728847908428,0.14991951,62590.0,62589.0,0.009]
[1728847908630,0.14991951,62590.0,62589.0,0.088898]
[1728847914932,0.11,62590.0,62589.0,0.33791186]
[1728847915927,0.189898,62590.0,62589.0,0.33791186]
[1728847923037,0.189898,62590.0,62589.0,0.088898]
[1728847930046,0.189898,62590.0,62589.0,0.33696538]
[1728847933443,0.189898,62590.0,62589.0,0.33697362]
[1728847935951,0.3608,62596.0,62595.0,0.07989]
[1728847936138,0.440689,62596.0,62595.0,0.2885326]
[1728847936454,0.440689,62596.0,62595.0,0.19306516]
[1728847937146,0.441689,62596.0,62595.0,0.28852328]
[1728847938053,0.47255379,62596.0,62595.0,0.07989]
[1728847940144,0.11175379,62596.0,62595.0,0.07989]
[1728847940651,0.11175379,62596.0,62595.0,0.1082506]
[1728847942249,0.11175379,62596.0,62595.0,0.07989]
[1728847943045,0.11175321,62596.0,62595.0,0.07989]
[1728847945047,0.04091432,62596.0,62595.0,0.2882516]
[1728847949048,0.001,62596.0,62595.0,0.2882516]
[1728847949250,0.0611,62606.0,62602.0,0.079881]
[1728847949552,0.079869,62612.0,62607.0,0.079874]
[1728847949553,0.079875,62608.0,62607.0,0.079874]
[1728847949755,0.079875,62608.0,62607.0,0.19204633]
[1728847950357,0.52626871,62610.0,62609.0,0.079872]
[1728847950551,0.49626871,62610.0,62609.0,0.189872]
[1728847952454,0.49626871,62610.0,62609.0,0.190872]
[1728847953154,0.56724672,62610.0,62609.0,0.191872]
[1728847953752,0.43177801,62610.0,62609.0,0.191872]
[1728847954248,0.51164901,62610.0,62609.0,0.191872]
[1728847956359,0.51164901,62610.0,62609.0,0.21998328]
[1728847958160,0.47252907,62610.0,62609.0,0.21998328]
[1728847958356,0.47252907,62610.0,62609.0,0.191872]
[1728847958668,0.511649,62610.0,62609.0,0.081872]
[1728847959755,0.070978,62610.0,62609.0,0.081872]
[1728847960172,0.11253639,62610.0,62609.0,0.081872]
[1728847961074,0.11253639,62610.0,62609.0,0.14532933]
[1728847961258,0.11253639,62610.0,62609.0,0.081872]
[1728847961870,0.11253639,62610.0,62609.0,0.14532933]
[1728847964964,0.11253639,62610.0,62609.0,0.081872]
[1728847966866,0.11253639,62610.0,62609.0,0.25532933]
[1728847967968,0.11253639,62610.0,62609.0,1.381032]
[1728847968164,0.11253639,62610.0,62609.0,1.335232]
[1728847968670,0.001,62610.0,62609.0,1.335232]
[1728847970964,0.0037,62621.0,62609.0,1.444232]
[1728847971266,0.0037,62620.0,62616.0,0.550663]
[1728847971465,0.079853,62624.0,62623.0,0.079854]
[1728847973177,0.080853,62624.0,62623.0,0.080854]
[1728847974477,0.080853,62624.0,62623.0,0.081854]
[1728847975175,0.15081469,62624.0,62623.0,0.081854]
[1728847976977,0.26330068,62624.0,62623.0,0.11004107]
[1728847977175,0.11998438,62624.0,62623.0,0.11004107]
[1728847977375,0.14434618,62624.0,62623.0,0.11004107]
[1728847977575,0.07096169,62624.0,62623.0,0.47084107]
[1728847979472,0.07095455,62624.0,62623.0,0.47084107]
[1728847979691,0.07095455,62624.0,62623.0,0.46984107]
[1728847979877,0.07095455,62624.0,62623.0,0.47084107]
[1728847980567,0.07095369,62624.0,62623.0,0.47084107]
[1728847981568,0.03184734,62624.0,62623.0,0.47084107]
[1728847982083,0.00239545,62630.0,62623.0,1.65988107]
[1728847982376,0.10911018,62634.0,62630.0,0.079845]
[1728847982581,0.13111045,62641.0,62633.0,0.550642]
[1728847982770,0.12741045,62642.0,62641.0,0.079831]
[1728847983171,0.172527,62645.0,62644.0,0.079828]
[1728847986287,0.172527,62645.0,62644.0,0.081828]
[1728847986889,0.172527,62645.0,62644.0,0.002]
[1728847987283,0.0609,62645.0,62644.0,0.002]
[1728847987477,0.0307,62645.0,62644.0,0.081828]
[1728847988779,0.079822,62649.0,62648.0,0.079822]
[1728847988988,0.079822,62649.0,62648.0,0.189822]
[1728847989387,0.0656,62652.0,62651.0,0.079819]
[1728847989590,0.145417,62652.0,62651.0,0.189819]
[1728847990681,0.145417,62652.0,62651.0,0.190819]
[1728847991687,0.145417,62652.0,62651.0,0.191819]
[1728847992487,0.0328,62652.0,62651.0,0.301819]
[1728847993486,0.0328,62652.0,62651.0,0.662619]
[1728847994581,0.0328,62652.0,62651.0,0.552619]
[1728847994781,0.0328,62652.0,62651.0,0.662619]
[1728847995982,0.0328,62652.0,62651.0,0.58124215]
[1728847996182,0.0328,62652.0,62651.0,0.69124215]
[1728847998087,0.12088606,62652.0,62651.0,0.56344734]
[1728847998390,0.15245261,62652.0,62651.0,0.38772948]
[1728847999085,0.15245261,62652.0,62651.0,0.35754848]
[1728847999678,0.23226961,62652.0,62651.0,0.002]
[1728847999879,0.28952143,62652.0,62651.0,0.002]
[1728848000289,0.23226961,62652.0,62651.0,0.002]
[1728848000493,0.23226961,62652.0,62651.0,0.081819]
[1728848004899,0.40687079,62652.0,62651.0,0.081819]
[1728848005092,0.112617,62652.0,62651.0,0.081819]
[1728848006596,0.112617,62652.0,62651.0,0.002]
[1728848008799,0.112617,62652.0,62651.0,0.112]
[1728848009000,0.0328,62652.0,62651.0,0.191819]
[1728848009300,0.3608,62653.0,62652.0,0.079817]
[1728848009708,0.00239443,62655.0,62652.0,0.079817]
[1728848009899,0.00239443,62655.0,62654.0,0.189815]
[1728848010296,0.0307,62659.0,62654.0,0.11]
[1728848010501,0.0307,62659.0,62658.0,0.18981]
[1728848011503,0.0037,62664.0,62663.0,0.079803]
[1728848011695,0.113594,62671.0,62667.0,0.079798]
[1728848011897,0.109894,62671.0,62667.0,0.249798]
[1728848012096,0.079795,62670.0,62667.0,0.249798]
[1728848012299,0.0037,62675.0,62667.0,1.41872]
[1728848012492,0.0301,62679.0,62674.0,0.5308]
[1728848012693,0.109884,62679.0,62678.0,0.079784]
[1728848012897,0.0301,62679.0,62678.0,0.249784]
[1728848013094,0.22876504,62679.0,62678.0,0.0422463]
[1728848013297,0.22876504,62679.0,62674.0,0.3608]
[1728848013298,0.079788,62675.0,62674.0,0.610588]
[1728848013496,0.19867004,62675.0,62674.0,0.610588]
[1728848014101,0.11888204,62675.0,62674.0,0.610588]
[1728848014404,0.15908282,62676.0,62674.0,0.610588]
[1728848014706,0.11888204,62675.0,62674.0,0.441588]
[1728848015192,0.11888204,62675.0,62674.0,0.3608]
[1728848015398,0.06990148,62675.0,62674.0,0.3618]
[1728848015699,0.19867004,62675.0,62674.0,0.441589]
[1728848016003,0.19867004,62675.0,62674.0,0.611589]
[1728848016301,0.29276219,62675.0,62674.0,0.611589]
[1728848016502,0.34174281,62675.0,62674.0,0.250789]
[1728848017306,0.34171066,62675.0,62674.0,0.250789]
[1728848017497,0.34171066,62675.0,62674.0,0.249789]
[1728848018298,0.19867017,62675.0,62674.0,0.249789]
[1728848019300,0.14968955,62675.0,62674.0,0.249789]
[1728848020209,0.079788,62675.0,62674.0,0.249789]
[1728848020402,0.0301,62679.0,62674.0,0.17]
[1728848020599,0.109886,62679.0,62678.0,0.079784]
[1728848021910,0.109886,62679.0,62678.0,0.080784]
[1728848022408,0.109886,62679.0,62678.0,0.081784]
[1728848023308,0.0301,62679.0,62678.0,0.081784]
[1728848023604,0.0037,62683.0,62682.0,0.079779]
[1728848023810,0.0037,62690.0,62689.0,0.07977]
[1728848024003,0.0644,62694.0,62692.0,0.249766]
[1728848024510,0.3645,62698.0,62692.0,0.249766]
[1728848024908,0.082158,62693.0,62692.0,0.249766]
[1728848025104,0.079765,62693.0,62689.0,0.3618]
[1728848025302,0.079769,62690.0,62689.0,0.44157]
[1728848026609,0.079769,62690.0,62689.0,0.44057]
[1728848026806,0.079769,62690.0,62689.0,0.3608]
[1728848027212,0.079769,62690.0,62689.0,0.3618]
[1728848027510,0.079769,62690.0,62689.0,0.3628]
[1728848028408,0.079769,62690.0,62689.0,0.002]
[1728848028596,0.14965809,62690.0,62689.0,0.002]
[1728848028802,0.18025809,62690.0,62689.0,0.002]
[1728848029103,0.18025809,62690.0,62689.0,0.08177]
[1728848029309,0.06988909,62690.0,62689.0,0.08177]
[1728848029615,0.14965809,62690.0,62689.0,0.08177]
[1728848030204,0.14965624,62690.0,62689.0,0.08177]
[1728848030602,0.06988724,62690.0,62689.0,0.08177]
[1728848032506,0.14965624,62690.0,62689.0,0.08177]
[1728848032706,0.06988724,62690.0,62689.0,0.08177]
[1728848033925,0.14965624,62690.0,62689.0,0.08177]
[1728848035308,0.079769,62690.0,62689.0,0.08177]
[1728848036916,0.3608,62691.0,62690.0,0.079769]
[1728848038111,0.3608,62691.0,62690.0,0.080769]
[1728848039115,0.3608,62691.0,62690.0,0.081769]
[1728848039320,0.440568,62691.0,62690.0,0.081769]
[1728848040922,0.440568,62691.0,62690.0,0.002]
[1728848043523,0.7179417,62691.0,62690.0,0.002]
[1728848044120,0.55942808,62691.0,62690.0,0.002]
[1728848046325,0.55942808,62691.0,62690.0,0.172]
[1728848046715,0.55942808,62691.0,62690.0,0.251769]
[1728848047232,0.47966008,62691.0,62690.0,0.251769]
[1728848048220,0.11886008,62691.0,62690.0,0.251769]
[1728848050432,0.110365,62694.0,62692.0,0.079765]
[1728848050628,0.110365,62694.0,62692.0,0.04745226]
[1728848050830,0.110365,62694.0,62693.0,0.079765]
[1728848051617,0.110365,62694.0,62693.0,0.12721726]
[1728848052026,0.110365,62694.0,62693.0,0.079765]
[1728848052718,0.110365,62694.0,62693.0,0.080765]
[1728848053132,0.110365,62694.0,62693.0,0.081765]
[1728848053724,0.110365,62694.0,62693.0,0.12926522]
[1728848054526,0.110365,62694.0,62693.0,0.04950022]
[1728848056130,0.220365,62694.0,62693.0,0.04950022]
[1728848057628,0.079768,62691.0,62690.0,0.04751656]
[1728848057834,0.079773,62687.0,62686.0,0.07437251]
[1728848058029,0.079774,62686.0,62685.0,0.06327251]
[1728848058226,0.3608,62688.0,62684.0,0.06327251]
[1728848058227,0.079775,62685.0,62684.0,0.06327251]
[1728848058529,0.079778,62683.0,62682.0,0.079779]
[1728848059535,0.07978,62681.0,62680.0,0.14305451]
[1728848060226,0.07978,62681.0,62680.0,0.079782]
[1728848061132,0.08178,62681.0,62680.0,0.080782]
[1728848061638,0.08378,62681.0,62680.0,0.081782]
[1728848065331,0.1536727,62681.0,62680.0,0.081782]
[1728848070034,0.28117405,62681.0,62680.0,0.081782]
[1728848070635,0.1536727,62681.0,62680.0,0.081782]
[1728848070840,0.1536727,62681.0,62680.0,0.002]
[1728848071137,0.32367453,62681.0,62680.0,0.002]
[1728848071342,0.37265392,62681.0,62680.0,0.002]
[1728848072537,0.51609294,62681.0,62680.0,0.002]
[1728848073332,0.25378,62681.0,62680.0,0.002]
[1728848076148,0.079787,62676.0,62675.0,0.0111]
[1728848076443,0.079792,62672.0,62671.0,0.06327251]
[1728848077138,0.079793,62671.0,62670.0,0.06327251]
[1728848077741,0.079793,62671.0,62670.0,0.14306651]
[1728848078945,0.3608,62673.0,62672.0,0.079792]
[1728848079937,0.443591,62673.0,62672.0,0.189792]
[1728848081238,0.445591,62673.0,62672.0,0.189792]
[1728848082947,0.445591,62673.0,62672.0,0.079792]
[1728848084254,0.084791,62673.0,62672.0,0.079792]
[1728848084453,0.084791,62673.0,62672.0,0.14306451]
[1728848084646,0.084791,62673.0,62672.0,0.079792]
[1728848085048,0.084791,62673.0,62672.0,0.14306451]
[1728848085352,0.084791,62673.0,62672.0,0.079792]
[1728848085744,0.084791,62673.0,62672.0,0.14306451]
[1728848087350,0.07569172,62673.0,62672.0,0.079792]
[1728848089660,0.07569174,62673.0,62672.0,0.079792]
[1728848094049,0.03582626,62673.0,62672.0,0.189792]
[1728848095466,0.03582626,62673.0,62672.0,0.30267352]
[1728848095467,0.005,62673.0,62672.0,0.30267352]
[1728848097272,0.005,62673.0,62672.0,0.39801292]
[1728848098761,0.005,62673.0,62672.0,0.3976846]
[1728848099165,0.005,62673.0,62672.0,0.39771038]
[1728848099369,0.005,62673.0,62672.0,0.30267352]
[1728848099853,0.005,62673.0,62672.0,0.39771076]
[1728848100060,0.005,62673.0,62672.0,0.30267352]
[1728848102559,0.12388543,62673.0,62672.0,0.189792]
[1728848102759,0.07490057,62673.0,62672.0,0.189792]
[1728848102968,0.14864344,62673.0,62672.0,0.30478196]
[1728848103264,0.07490057,62673.0,62672.0,0.30478196]
[1728848103755,0.02340035,62673.0,62672.0,0.78346196]
[1728848104065,0.0037,62679.0,62672.0,0.78346196]
[1728848104066,0.13138256,62679.0,62673.0,0.079791]
[1728848104267,0.13138256,62679.0,62678.0,0.11]
[1728848104268,0.12768256,62679.0,62678.0,0.11]
[1728848104470,0.12768256,62681.0,62680.0,0.079782]
[1728848104660,0.12768256,62681.0,62680.0,0.189782]
[1728848105360,0.12768256,62682.0,62680.0,0.11]
[1728848105568,0.12768256,62682.0,62681.0,0.07978]
[1728848106471,0.48848256,62683.0,62682.0,0.079779]
[1728848106655,0.3608,62683.0,62682.0,0.558379]
[1728848106859,0.00239374,62685.0,62682.0,1.1886]
[1728848107169,0.00239374,62685.0,62684.0,0.189777]
[1728848107368,0.12984085,62685.0,62684.0,0.550577]
[1728848107563,0.00239374,62685.0,62684.0,1.629177]
[1728848108361,0.00239374,62685.0,62684.0,1.630177]
[1728848108956,0.00239374,62685.0,62684.0,1.631177]
[1728848111062,0.00239374,62685.0,62684.0,1.65958651]
[1728848114073,0.11,62690.0,62687.0,0.079771]
[1728848114373,0.079766,62693.0,62688.0,0.079772]
[1728848114374,0.0304,62689.0,62688.0,0.079772]
[1728848115073,0.0304,62689.0,62688.0,0.189772]
[1728848115873,0.11017,62689.0,62688.0,0.189772]
[1728848116768,0.11017,62689.0,62688.0,0.190772]
[1728848117075,0.11017,62689.0,62688.0,0.191772]
[1728848117575,0.22902446,62689.0,62688.0,0.191772]
[1728848117773,0.18005526,62689.0,62688.0,0.191772]
[1728848120580,0.2290244,62689.0,62688.0,0.191772]